[Event "*** Titled Tuesday Blitz"]
[Site "Chess.com"]
[Date "2020.04.14"]
[Round "3"]
[White "Ind1anStar"]
[Black "Beca95"]
[Result "1-0"]
[WhiteElo "2608"]
[BlackElo "2884"]
[TimeControl "180+1"]
[EndTime "10:29:12 PDT"]
[Termination "Ind1anStar won on time"]

1. c4 {[%clk 0:03:00.9]} 1... e5 {[%clk 0:02:59.8]} 2. g3 {[%clk 0:02:59.3]}
2... Nf6 {[%clk 0:02:59]} 3. Bg2 {[%clk 0:02:59.4]} 3... h6 {[%clk 0:02:59.4]}
4. Nc3 {[%clk 0:02:59.6]} 4... Bc5 {[%clk 0:02:58.1]} 5. e3 {[%clk 0:02:59.4]}
5... Nc6 {[%clk 0:02:57.5]} 6. Nge2 {[%clk 0:02:59.8]} 6... d6 {[%clk
0:02:55.8]} 7. O-O {[%clk 0:03:00]} 7... a6 {[%clk 0:02:55]} 8. h3 {[%clk
0:03:00.1]} 8... Ba7 {[%clk 0:02:54.7]} 9. d3 {[%clk 0:03:00.1]} 9... O-O {[%clk
0:02:54.7]} 10. Kh2 {[%clk 0:03:00]} 10... Ne7 {[%clk 0:02:47.7]} 11. Nd5 {[%clk
0:02:54.1]} 11... Nfxd5 {[%clk 0:02:37.1]} 12. cxd5 {[%clk 0:02:55]} 12... f5
{[%clk 0:02:36.3]} 13. f4 {[%clk 0:02:55]} 13... Ng6 {[%clk 0:02:35.6]} 14. e4
{[%clk 0:02:51.6]} 14... exf4 {[%clk 0:02:27.8]} 15. Nxf4 {[%clk 0:02:51.6]}
15... Nxf4 {[%clk 0:02:27.2]} 16. Bxf4 {[%clk 0:02:51.5]} 16... Bb6 {[%clk
0:02:20.5]} 17. Qe2 {[%clk 0:02:42.7]} 17... Bd7 {[%clk 0:02:12.8]} 18. Rae1
{[%clk 0:02:38.2]} 18... Qf6 {[%clk 0:02:05]} 19. Qc2 {[%clk 0:02:14.6]} 19...
Qg6 {[%clk 0:01:54.1]} 20. Be3 {[%clk 0:02:03.1]} 20... Bxe3 {[%clk 0:01:51.1]}
21. Rxe3 {[%clk 0:02:04]} 21... Rac8 {[%clk 0:01:50.2]} 22. Ref3 {[%clk
0:01:57.8]} 22... Rf6 {[%clk 0:01:10.1]} 23. Qb3 {[%clk 0:01:41.8]} 23... b6
{[%clk 0:01:05.5]} 24. Rf4 {[%clk 0:01:29.2]} 24... Rcf8 {[%clk 0:01:02.9]} 25.
Qc3 {[%clk 0:01:23.8]} 25... Rc8 {[%clk 0:00:52.8]} 26. g4 {[%clk 0:01:10.9]}
26... fxg4 {[%clk 0:00:52.6]} 27. Rxf6 {[%clk 0:01:11]} 27... gxf6 {[%clk
0:00:51.2]} 28. Rxf6 {[%clk 0:01:11.7]} 28... g3+ {[%clk 0:00:47.4]} 29. Kh1
{[%clk 0:01:08.5]} 29... Qg7 {[%clk 0:00:47.7]} 30. Rf3 {[%clk 0:00:49.9]} 30...
Qxc3 {[%clk 0:00:24.9]} 31. bxc3 {[%clk 0:00:50.8]} 31... c6 {[%clk 0:00:25.4]}
32. Rxg3+ {[%clk 0:00:50.8]} 32... Kf7 {[%clk 0:00:26.1]} 33. c4 {[%clk
0:00:41.4]} 33... cxd5 {[%clk 0:00:26.4]} 34. exd5 {[%clk 0:00:40.4]} 34... b5
{[%clk 0:00:26.7]} 35. Rf3+ {[%clk 0:00:38.6]} 35... Ke7 {[%clk 0:00:26.9]} 36.
Rf4 {[%clk 0:00:38.9]} 36... bxc4 {[%clk 0:00:26.2]} 37. dxc4 {[%clk 0:00:39.8]}
37... Rb8 {[%clk 0:00:25.5]} 38. Re4+ {[%clk 0:00:38.2]} 38... Kf6 {[%clk
0:00:25.1]} 39. Re2 {[%clk 0:00:33.1]} 39... Rb4 {[%clk 0:00:23.6]} 40. Bf1
{[%clk 0:00:33.1]} 40... Bf5 {[%clk 0:00:21.6]} 41. Rf2 {[%clk 0:00:29.7]} 41...
Ke5 {[%clk 0:00:21.7]} 42. Kg2 {[%clk 0:00:28.9]} 42... Be4+ {[%clk 0:00:21.8]}
43. Kg3 {[%clk 0:00:29.1]} 43... Ra4 {[%clk 0:00:22]} 44. Kg4 {[%clk 0:00:25.4]}
44... Bb1 {[%clk 0:00:14.4]} 45. Kh5 {[%clk 0:00:19.5]} 45... Rxa2 {[%clk
0:00:14.5]} 46. Rf8 {[%clk 0:00:12.6]} 46... Rh2 {[%clk 0:00:07.2]} 47. Kxh6
{[%clk 0:00:12.7]} 47... Bf5 {[%clk 0:00:07]} 48. Kg5 {[%clk 0:00:13.3]} 48...
Rf2 {[%clk 0:00:01.4]} 49. Re8+ {[%clk 0:00:10.1]} 49... Kd4 {[%clk 0:00:01.3]}
50. Be2 {[%clk 0:00:10.4]} 50... Rg2+ {[%clk 0:00:01.4]} 51. Kxf5 {[%clk
0:00:10]} 51... Rf2+ {[%clk 0:00:01.1]} 52. Kg4 {[%clk 0:00:10.4]} 1-0

[Event "*** Titled Tuesday Blitz"]
[Site "Chess.com"]
[Date "2020.04.14"]
[Round "3"]
[White "Artem_Sadovsky"]
[Black "2nd_life"]
[Result "0-1"]
[WhiteElo "2607"]
[BlackElo "2414"]
[TimeControl "180+1"]
[EndTime "10:29:13 PDT"]
[Termination "2nd_life won by checkmate"]

1. Nf3 {[%clk 0:03:00.9]} 1... Nf6 {[%clk 0:02:59.7]} 2. g3 {[%clk 0:03:00.2]}
2... d5 {[%clk 0:02:59.3]} 3. Bg2 {[%clk 0:03:00.5]} 3... c6 {[%clk 0:02:59.9]}
4. O-O {[%clk 0:03:00.7]} 4... Bg4 {[%clk 0:02:59.9]} 5. c4 {[%clk 0:03:00.4]}
5... Nbd7 {[%clk 0:02:59]} 6. b3 {[%clk 0:03:00.4]} 6... e6 {[%clk 0:02:57.6]}
7. Bb2 {[%clk 0:03:00.6]} 7... Be7 {[%clk 0:02:55]} 8. d3 {[%clk 0:03:00.5]}
8... O-O {[%clk 0:02:53.4]} 9. Nbd2 {[%clk 0:03:01.1]} 9... a5 {[%clk
0:02:49.4]} 10. a3 {[%clk 0:03:00.2]} 10... Bxf3 {[%clk 0:02:38.8]} 11. Bxf3
{[%clk 0:02:52.7]} 11... b5 {[%clk 0:02:35.9]} 12. cxb5 {[%clk 0:02:45.1]} 12...
cxb5 {[%clk 0:02:35.5]} 13. e4 {[%clk 0:02:43.6]} 13... Qb6 {[%clk 0:02:18.2]}
14. e5 {[%clk 0:02:34.1]} 14... Ne8 {[%clk 0:02:14.1]} 15. d4 {[%clk 0:02:34.7]}
15... Nb8 {[%clk 0:02:01.2]} 16. Re1 {[%clk 0:02:23.1]} 16... Nc6 {[%clk
0:01:59.6]} 17. Nf1 {[%clk 0:02:23.7]} 17... Nc7 {[%clk 0:01:42.8]} 18. Ne3
{[%clk 0:02:18]} 18... f6 {[%clk 0:01:38.9]} 19. Rc1 {[%clk 0:01:52.8]} 19...
fxe5 {[%clk 0:01:32.5]} 20. dxe5 {[%clk 0:01:52.3]} 20... b4 {[%clk 0:01:07.9]}
21. a4 {[%clk 0:01:51]} 21... Rac8 {[%clk 0:01:07.6]} 22. Bg4 {[%clk 0:01:50.2]}
22... Rfe8 {[%clk 0:00:54.2]} 23. Nxd5 {[%clk 0:01:36.3]} 23... exd5 {[%clk
0:00:45.3]} 24. Bxc8 {[%clk 0:01:36.7]} 24... Rxc8 {[%clk 0:00:43.7]} 25. Qg4
{[%clk 0:01:36.7]} 25... Rd8 {[%clk 0:00:18.9]} 26. Re2 {[%clk 0:01:26.4]} 26...
d4 {[%clk 0:00:18.1]} 27. Rec2 {[%clk 0:01:26.6]} 27... Nxe5 {[%clk 0:00:14.1]}
28. Qe4 {[%clk 0:01:25.7]} 28... Nd5 {[%clk 0:00:09.4]} 29. Bxd4 {[%clk
0:01:20.9]} 29... Qxd4 {[%clk 0:00:01.6]} 30. Qf5 {[%clk 0:01:09.2]} 30... Nd3
{[%clk 0:00:01.8]} 31. Rd1 {[%clk 0:01:06.5]} 31... Nc3 {[%clk 0:00:01.8]} 32.
Qe6+ {[%clk 0:01:06.4]} 32... Kf8 {[%clk 0:00:01.6]} 33. Rdd2 {[%clk 0:00:53.4]}
33... Qe4 {[%clk 0:00:01.7]} 34. Qh3 {[%clk 0:00:31.3]} 34... Qe1+ {[%clk
0:00:01.7]} 35. Qf1 {[%clk 0:00:32.2]} 35... Qxf1+ {[%clk 0:00:02.1]} 36. Kxf1
{[%clk 0:00:32.3]} 36... Bf6 {[%clk 0:00:02.7]} 37. Kg2 {[%clk 0:00:31.8]} 37...
Nc5 {[%clk 0:00:03.2]} 38. Rxd8+ {[%clk 0:00:28.9]} 38... Bxd8 {[%clk
0:00:04.1]} 39. Rd2 {[%clk 0:00:29.8]} 39... Bf6 {[%clk 0:00:04.3]} 40. Rd6
{[%clk 0:00:26.9]} 40... Nxb3 {[%clk 0:00:04.9]} 41. Ra6 {[%clk 0:00:27.8]}
41... Nxa4 {[%clk 0:00:05]} 42. Ra8+ {[%clk 0:00:27.7]} 42... Kf7 {[%clk
0:00:05.5]} 43. Ra7+ {[%clk 0:00:28.6]} 43... Kg6 {[%clk 0:00:06]} 44. f4 {[%clk
0:00:29.5]} 44... Nbc5 {[%clk 0:00:06.2]} 45. Rxa5 {[%clk 0:00:28.1]} 45... b3
{[%clk 0:00:05.8]} 46. Rb5 {[%clk 0:00:29]} 46... b2 {[%clk 0:00:05.9]} 47. g4
{[%clk 0:00:29.9]} 47... h5 {[%clk 0:00:05]} 48. f5+ {[%clk 0:00:29.6]} 48...
Kg5 {[%clk 0:00:04.6]} 49. h3 {[%clk 0:00:30.5]} 49... hxg4 {[%clk 0:00:04.6]}
50. hxg4 {[%clk 0:00:30.5]} 50... Kxg4 {[%clk 0:00:05.5]} 51. Rb4+ {[%clk
0:00:30.9]} 51... Kxf5 {[%clk 0:00:06.4]} 52. Kf3 {[%clk 0:00:31.8]} 52... Ke5
{[%clk 0:00:06.8]} 53. Rb5 {[%clk 0:00:30.5]} 53... Kd5 {[%clk 0:00:07.1]} 54.
Rxb2 {[%clk 0:00:27.7]} 54... Nxb2 {[%clk 0:00:07]} 55. Kg4 {[%clk 0:00:27.7]}
55... Nbd3 {[%clk 0:00:07.1]} 56. Kh5 {[%clk 0:00:27.9]} 56... Ke5 {[%clk
0:00:07.1]} 57. Kg4 {[%clk 0:00:28]} 57... g6 {[%clk 0:00:06.9]} 58. Kf3 {[%clk
0:00:27.9]} 58... Kf5 {[%clk 0:00:07.1]} 59. Kg3 {[%clk 0:00:28]} 59... g5
{[%clk 0:00:07.5]} 60. Kg2 {[%clk 0:00:28.9]} 60... g4 {[%clk 0:00:07.6]} 61.
Kg3 {[%clk 0:00:29.1]} 61... Be5+ {[%clk 0:00:07.5]} 62. Kg2 {[%clk 0:00:30]}
62... Kf4 {[%clk 0:00:07.9]} 63. Kh1 {[%clk 0:00:30.7]} 63... Kf3 {[%clk
0:00:07.4]} 64. Kg1 {[%clk 0:00:30.8]} 64... g3 {[%clk 0:00:07.6]} 65. Kh1
{[%clk 0:00:31.7]} 65... Ne4 {[%clk 0:00:06.3]} 66. Kg1 {[%clk 0:00:32.6]} 66...
Bd4+ {[%clk 0:00:05.3]} 67. Kf1 {[%clk 0:00:33.5]} 67... g2# {[%clk 0:00:05.7]}
0-1

[Event "*** Titled Tuesday Blitz"]
[Site "Chess.com"]
[Date "2020.04.14"]
[Round "3"]
[White "Dixit_Nikhil"]
[Black "mshuaau0"]
[Result "1/2-1/2"]
[WhiteElo "2440"]
[BlackElo "2215"]
[TimeControl "180+1"]
[EndTime "10:29:14 PDT"]
[Termination "Game drawn by stalemate"]

1. e4 {[%clk 0:03:00.9]} 1... e5 {[%clk 0:02:59.7]} 2. Nf3 {[%clk 0:03:00.4]}
2... Nc6 {[%clk 0:03:00.1]} 3. Nc3 {[%clk 0:03:01]} 3... Nf6 {[%clk 0:02:59.7]}
4. d4 {[%clk 0:03:01.6]} 4... exd4 {[%clk 0:02:59]} 5. Nxd4 {[%clk 0:03:02.5]}
5... Bb4 {[%clk 0:02:58.7]} 6. Nxc6 {[%clk 0:03:03.1]} 6... bxc6 {[%clk
0:02:58.3]} 7. Bd3 {[%clk 0:03:03.8]} 7... d5 {[%clk 0:02:58.3]} 8. exd5 {[%clk
0:03:04.5]} 8... cxd5 {[%clk 0:02:58.1]} 9. O-O {[%clk 0:03:05.1]} 9... O-O
{[%clk 0:02:58.6]} 10. Bg5 {[%clk 0:03:05.7]} 10... c6 {[%clk 0:02:58.5]} 11.
Qf3 {[%clk 0:03:06.2]} 11... h6 {[%clk 0:02:57.8]} 12. Bxf6 {[%clk 0:03:05.3]}
12... Qxf6 {[%clk 0:02:58.7]} 13. Qxf6 {[%clk 0:03:05.8]} 13... gxf6 {[%clk
0:02:59.6]} 14. Ne2 {[%clk 0:03:06.2]} 14... Re8 {[%clk 0:02:57.4]} 15. Ng3
{[%clk 0:03:03.4]} 15... Bf8 {[%clk 0:02:52.1]} 16. Nh5 {[%clk 0:02:52.1]} 16...
Bg7 {[%clk 0:02:48.9]} 17. Nxg7 {[%clk 0:02:50.7]} 17... Kxg7 {[%clk 0:02:48.4]}
18. Rfe1 {[%clk 0:02:51.6]} 18... Bd7 {[%clk 0:02:48]} 19. Kf1 {[%clk
0:02:41.9]} 19... Re5 {[%clk 0:02:40.1]} 20. f4 {[%clk 0:02:40.2]} 20... Ree8
{[%clk 0:02:38.2]} 21. Rxe8 {[%clk 0:02:38.5]} 21... Rxe8 {[%clk 0:02:37.1]} 22.
Re1 {[%clk 0:02:38.5]} 22... c5 {[%clk 0:02:23.7]} 23. Rxe8 {[%clk 0:02:36]}
23... Bxe8 {[%clk 0:02:24.6]} 24. c3 {[%clk 0:02:33.9]} 24... Kf8 {[%clk
0:02:23.1]} 25. Ke2 {[%clk 0:02:34]} 25... Ke7 {[%clk 0:02:22.9]} 26. Kf3 {[%clk
0:02:32.1]} 26... Bd7 {[%clk 0:02:21.7]} 27. Kg3 {[%clk 0:02:27.3]} 27... a5
{[%clk 0:02:10.7]} 28. Kh4 {[%clk 0:02:26.4]} 28... Kf8 {[%clk 0:02:10.1]} 29.
Kh5 {[%clk 0:02:25.5]} 29... Kg7 {[%clk 0:02:10.2]} 30. f5 {[%clk 0:02:19.1]}
30... Bc6 {[%clk 0:02:07]} 31. g3 {[%clk 0:02:18.3]} 31... d4 {[%clk 0:02:04.3]}
32. cxd4 {[%clk 0:02:17.4]} 32... cxd4 {[%clk 0:02:03.9]} 33. Kg4 {[%clk
0:02:17]} 33... Kf8 {[%clk 0:02:00.9]} 34. Kf4 {[%clk 0:02:16.3]} 34... Ke7
{[%clk 0:01:59.2]} 35. Be4 {[%clk 0:02:16.1]} 35... Bb5 {[%clk 0:01:57.2]} 36.
Bc2 {[%clk 0:01:49.5]} 36... Kd6 {[%clk 0:01:51]} 37. Ke4 {[%clk 0:01:48.8]}
37... Kc5 {[%clk 0:01:51.1]} 38. Bd3 {[%clk 0:01:42]} 38... Bc6+ {[%clk
0:01:43.3]} 39. Kf4 {[%clk 0:01:42.1]} 39... Bd5 {[%clk 0:01:31.9]} 40. a3
{[%clk 0:01:33.8]} 40... Bc4 {[%clk 0:01:30.6]} 41. Bc2 {[%clk 0:01:15.8]} 41...
d3 {[%clk 0:01:29.2]} 42. Bd1 {[%clk 0:01:16.1]} 42... Kd4 {[%clk 0:01:29.3]}
43. b3 {[%clk 0:01:14.4]} 43... Bd5 {[%clk 0:01:28.5]} 44. b4 {[%clk 0:01:14.7]}
44... axb4 {[%clk 0:01:27.9]} 45. axb4 {[%clk 0:01:15.6]} 45... d2 {[%clk
0:01:25.3]} 46. b5 {[%clk 0:01:14.1]} 46... Kc5 {[%clk 0:01:10.2]} 47. Ke3
{[%clk 0:01:12.1]} 47... Kxb5 {[%clk 0:01:09.3]} 48. Kxd2 {[%clk 0:01:12.7]}
48... Kc5 {[%clk 0:01:08.7]} 49. Ke3 {[%clk 0:01:13.2]} 49... Kd6 {[%clk
0:01:06.3]} 50. Kf4 {[%clk 0:01:13.4]} 50... Ke7 {[%clk 0:01:06.4]} 51. Bf3
{[%clk 0:01:08.2]} 51... Bb3 {[%clk 0:01:04.5]} 52. Kg4 {[%clk 0:01:05.2]} 52...
Kf8 {[%clk 0:01:04.9]} 53. Kh5 {[%clk 0:01:04.9]} 53... Kg7 {[%clk 0:01:05.4]}
54. Kg4 {[%clk 0:01:05.5]} 54... Bc2 {[%clk 0:01:04.6]} 55. Kf4 {[%clk
0:01:05.6]} 55... Bb1 {[%clk 0:01:04.3]} 56. g4 {[%clk 0:01:06]} 56... Ba2
{[%clk 0:01:03.9]} 57. Ke3 {[%clk 0:01:06.3]} 57... Bc4 {[%clk 0:01:03.7]} 58.
Kd4 {[%clk 0:01:06.1]} 58... Ba2 {[%clk 0:01:03.8]} 59. Bd5 {[%clk 0:01:05.4]}
59... Bb1 {[%clk 0:01:00.1]} 60. Be4 {[%clk 0:01:04.6]} 60... Ba2 {[%clk
0:01:00]} 61. Kc3 {[%clk 0:01:02.4]} 61... h5 {[%clk 0:00:48.1]} 62. gxh5 {[%clk
0:00:46.3]} 62... Kh6 {[%clk 0:00:44.8]} 63. Bf3 {[%clk 0:00:46.5]} 63... Be6
{[%clk 0:00:37.9]} 64. fxe6 {[%clk 0:00:44.3]} 64... fxe6 {[%clk 0:00:38.8]} 65.
Kd4 {[%clk 0:00:44.8]} 65... f5 {[%clk 0:00:37.1]} 66. Ke5 {[%clk 0:00:45]}
66... Kg7 {[%clk 0:00:37]} 67. h4 {[%clk 0:00:45.7]} 67... Kh8 {[%clk
0:00:37.9]} 68. Kxe6 {[%clk 0:00:46.2]} 68... Kg7 {[%clk 0:00:38.3]} 69. Ke7
{[%clk 0:00:45.4]} 69... Kh8 {[%clk 0:00:39.2]} 70. Kf6 {[%clk 0:00:45.7]} 70...
Kh7 {[%clk 0:00:38.4]} 71. Kg5 {[%clk 0:00:45.4]} 71... f4 {[%clk 0:00:38.8]}
72. h6 {[%clk 0:00:46.3]} 72... Kh8 {[%clk 0:00:39.4]} 73. Kg6 {[%clk 0:00:47]}
73... Kg8 {[%clk 0:00:39.3]} 74. Bg4 {[%clk 0:00:47.8]} 74... Kh8 {[%clk
0:00:39.7]} 75. Be6 {[%clk 0:00:48.7]} 75... f3 {[%clk 0:00:39.6]} 76. Bh3
{[%clk 0:00:49]} 76... f2 {[%clk 0:00:39.7]} 77. Bf1 {[%clk 0:00:49.9]} 77...
Kg8 {[%clk 0:00:40]} 78. h7+ {[%clk 0:00:50.8]} 78... Kh8 {[%clk 0:00:40.2]} 79.
Kf7 {[%clk 0:00:51.2]} 79... Kxh7 {[%clk 0:00:39.6]} 80. Kf6 {[%clk 0:00:52.1]}
80... Kh8 {[%clk 0:00:39.9]} 81. Kf5 {[%clk 0:00:53]} 81... Kh7 {[%clk
0:00:40.8]} 82. Kf4 {[%clk 0:00:53.9]} 82... Kh8 {[%clk 0:00:41.7]} 83. Kf3
{[%clk 0:00:54.8]} 83... Kh7 {[%clk 0:00:42.6]} 84. Kxf2 {[%clk 0:00:55.7]}
84... Kh8 {[%clk 0:00:43.5]} 85. Kg3 {[%clk 0:00:54.5]} 85... Kh7 {[%clk
0:00:44.4]} 86. Kg4 {[%clk 0:00:55.4]} 86... Kh8 {[%clk 0:00:45.3]} 87. Kg5
{[%clk 0:00:56.3]} 87... Kh7 {[%clk 0:00:46.2]} 88. h5 {[%clk 0:00:57.2]} 88...
Kh8 {[%clk 0:00:47.1]} 89. h6 {[%clk 0:00:58.1]} 89... Kh7 {[%clk 0:00:48]} 90.
Kh5 {[%clk 0:00:59]} 90... Kh8 {[%clk 0:00:48.9]} 91. Kg6 {[%clk 0:00:59.9]}
91... Kg8 {[%clk 0:00:48.7]} 92. Bd3 {[%clk 0:01:00.8]} 92... Kh8 {[%clk
0:00:49.6]} 93. Be4 {[%clk 0:01:01.7]} 93... Kg8 {[%clk 0:00:50.5]} 94. Bf5
{[%clk 0:01:02.6]} 94... Kh8 {[%clk 0:00:50.9]} 95. Be6 {[%clk 0:01:03.5]}
1/2-1/2

[Event "*** Titled Tuesday Blitz"]
[Site "Chess.com"]
[Date "2020.04.14"]
[Round "3"]
[White "onnoelgersma"]
[Black "Mr_Sinigami"]
[Result "0-1"]
[WhiteElo "2359"]
[BlackElo "2581"]
[TimeControl "180+1"]
[EndTime "10:29:15 PDT"]
[Termination "Mr_Sinigami won on time"]

1. e4 {[%clk 0:03:00.9]} 1... c5 {[%clk 0:02:59.8]} 2. Nf3 {[%clk 0:03:01.3]}
2... Nc6 {[%clk 0:03:00.1]} 3. Bb5 {[%clk 0:03:01.8]} 3... g6 {[%clk 0:03:00]}
4. O-O {[%clk 0:03:02.3]} 4... Bg7 {[%clk 0:03:00.1]} 5. Re1 {[%clk 0:03:02.4]}
5... e5 {[%clk 0:03:00.1]} 6. b4 {[%clk 0:03:02.2]} 6... cxb4 {[%clk 0:02:42]}
7. Bb2 {[%clk 0:03:00.6]} 7... Nge7 {[%clk 0:02:39.2]} 8. d4 {[%clk 0:02:55.7]}
8... exd4 {[%clk 0:02:32.1]} 9. Nxd4 {[%clk 0:02:34.4]} 9... O-O {[%clk
0:02:30]} 10. a3 {[%clk 0:02:27.8]} 10... Qb6 {[%clk 0:01:55.1]} 11. Nxc6 {[%clk
0:01:34.5]} 11... dxc6 {[%clk 0:01:50.2]} 12. Bxg7 {[%clk 0:01:29.5]} 12... Kxg7
{[%clk 0:01:51.1]} 13. Bc4 {[%clk 0:01:27]} 13... bxa3 {[%clk 0:01:26]} 14. Nxa3
{[%clk 0:01:18.1]} 14... Qc5 {[%clk 0:01:09.6]} 15. Qf3 {[%clk 0:01:05.3]} 15...
Be6 {[%clk 0:00:54.3]} 16. Bxe6 {[%clk 0:00:40.7]} 16... fxe6 {[%clk 0:00:55]}
17. Qg3 {[%clk 0:00:41.4]} 17... Rf7 {[%clk 0:00:39.8]} 18. Rab1 {[%clk
0:00:31.5]} 18... b5 {[%clk 0:00:37.3]} 19. c4 {[%clk 0:00:25.3]} 19... Raf8
{[%clk 0:00:31.3]} 20. Re2 {[%clk 0:00:25.2]} 20... b4 {[%clk 0:00:27.5]} 21.
Nc2 {[%clk 0:00:19]} 21... Qxc4 {[%clk 0:00:27]} 22. Rd2 {[%clk 0:00:19.4]}
22... Qc3 {[%clk 0:00:12.5]} 23. Qxc3+ {[%clk 0:00:16.6]} 23... bxc3 {[%clk
0:00:13.4]} 24. Re2 {[%clk 0:00:17.5]} 24... c5 {[%clk 0:00:11]} 25. Rb3 {[%clk
0:00:10.6]} 25... Rd8 {[%clk 0:00:06.2]} 26. Rxc3 {[%clk 0:00:09.4]} 26... Rd1+
{[%clk 0:00:05.8]} 27. Re1 {[%clk 0:00:10.1]} 27... Rxe1+ {[%clk 0:00:05.1]} 28.
Nxe1 {[%clk 0:00:11]} 28... Rf8 {[%clk 0:00:04.2]} 29. Rxc5 {[%clk 0:00:10.8]}
29... Ra8 {[%clk 0:00:04.9]} 30. Rc7 {[%clk 0:00:10.9]} 30... Kf8 {[%clk
0:00:03.9]} 31. Nd3 {[%clk 0:00:10.1]} 31... a5 {[%clk 0:00:04.4]} 32. Nf4
{[%clk 0:00:10.7]} 32... a4 {[%clk 0:00:03.9]} 33. Nxe6+ {[%clk 0:00:11.3]}
33... Kf7 {[%clk 0:00:04]} 34. Ng5+ {[%clk 0:00:11]} 34... Ke8 {[%clk
0:00:04.4]} 35. Rc1 {[%clk 0:00:10.3]} 35... h6 {[%clk 0:00:04.3]} 36. Nf3
{[%clk 0:00:09.5]} 36... a3 {[%clk 0:00:04.8]} 37. Nd4 {[%clk 0:00:09.9]} 37...
Kd7 {[%clk 0:00:03.1]} 38. Ra1 {[%clk 0:00:09.2]} 38... a2 {[%clk 0:00:02.2]}
39. Nc2 {[%clk 0:00:09.7]} 39... Nc6 {[%clk 0:00:02.5]} 40. Kf1 {[%clk
0:00:08.7]} 40... Kd6 {[%clk 0:00:02.5]} 41. Ke2 {[%clk 0:00:08.9]} 41... Kc5
{[%clk 0:00:03.1]} 42. Kd2 {[%clk 0:00:09.5]} 42... Kc4 {[%clk 0:00:03.4]} 43.
Kc1 {[%clk 0:00:06.5]} 43... Kb3 {[%clk 0:00:03.4]} 44. f4 {[%clk 0:00:06.1]}
44... Rc8 {[%clk 0:00:03.4]} 45. e5 {[%clk 0:00:06.5]} 45... Nb4 {[%clk
0:00:03.5]} 0-1

[Event "*** Titled Tuesday Blitz"]
[Site "Chess.com"]
[Date "2020.04.14"]
[Round "3"]
[White "Sam_ChessMood"]
[Black "Sashadav97"]
[Result "1-0"]
[WhiteElo "2909"]
[BlackElo "2596"]
[TimeControl "180+1"]
[EndTime "10:29:17 PDT"]
[Termination "Sam_ChessMood won by resignation"]

1. e4 {[%clk 0:02:59.9]} 1... c5 {[%clk 0:02:57.2]} 2. Nf3 {[%clk 0:02:59.5]}
2... Nc6 {[%clk 0:02:57.3]} 3. d4 {[%clk 0:02:59.1]} 3... cxd4 {[%clk
0:02:58.2]} 4. Nxd4 {[%clk 0:02:59.5]} 4... Nf6 {[%clk 0:02:58.8]} 5. Nc3 {[%clk
0:02:59.7]} 5... d6 {[%clk 0:02:59.1]} 6. Bg5 {[%clk 0:02:58]} 6... e6 {[%clk
0:02:59.1]} 7. Qd3 {[%clk 0:02:58.2]} 7... Bd7 {[%clk 0:02:58.4]} 8. Ndb5 {[%clk
0:02:57]} 8... Nb4 {[%clk 0:02:54.3]} 9. Qd1 {[%clk 0:02:56.2]} 9... Qb8 {[%clk
0:02:54.1]} 10. Bf4 {[%clk 0:02:33.6]} 10... e5 {[%clk 0:02:52.9]} 11. Bg5
{[%clk 0:02:33.9]} 11... a6 {[%clk 0:02:45.2]} 12. Bxf6 {[%clk 0:02:32.2]} 12...
gxf6 {[%clk 0:02:44.7]} 13. Na3 {[%clk 0:02:32.4]} 13... b5 {[%clk 0:02:45]} 14.
g3 {[%clk 0:02:23]} 14... Bg7 {[%clk 0:02:09.6]} 15. Bg2 {[%clk 0:02:22.2]}
15... O-O {[%clk 0:02:09.7]} 16. O-O {[%clk 0:02:21.7]} 16... Qb6 {[%clk
0:02:07.6]} 17. Nab1 {[%clk 0:02:14.7]} 17... Rac8 {[%clk 0:02:07.4]} 18. a3
{[%clk 0:02:11.5]} 18... Nc6 {[%clk 0:02:06.1]} 19. Nd5 {[%clk 0:02:11.9]} 19...
Qd8 {[%clk 0:02:06.6]} 20. Qh5 {[%clk 0:02:02]} 20... Nd4 {[%clk 0:01:50.3]} 21.
c3 {[%clk 0:02:01.7]} 21... Nb3 {[%clk 0:01:47.4]} 22. Ra2 {[%clk 0:02:01.9]}
22... Be6 {[%clk 0:01:36.6]} 23. Bh3 {[%clk 0:01:36.6]} 23... Rc4 {[%clk
0:01:18.5]} 24. Bf5 {[%clk 0:01:35.3]} 24... h6 {[%clk 0:01:13.1]} 25. Qd1
{[%clk 0:01:32]} 25... Na5 {[%clk 0:00:56.3]} 26. Nd2 {[%clk 0:01:23.9]} 26...
Rc6 {[%clk 0:00:56.2]} 27. a4 {[%clk 0:01:20.3]} 27... Nc4 {[%clk 0:00:47.9]}
28. axb5 {[%clk 0:01:19.3]} 28... axb5 {[%clk 0:00:48.8]} 29. Nxc4 {[%clk
0:01:17.3]} 29... bxc4 {[%clk 0:00:45.3]} 30. Ra7 {[%clk 0:01:12.3]} 30... Bxd5
{[%clk 0:00:34.9]} 31. Qxd5 {[%clk 0:01:11.5]} 31... Rc5 {[%clk 0:00:27.8]} 32.
Qd2 {[%clk 0:01:08.7]} 32... Qb6 {[%clk 0:00:24.3]} 33. Rd7 {[%clk 0:01:03.6]}
33... Rb5 {[%clk 0:00:20.4]} 34. Rxd6 {[%clk 0:00:58.1]} 34... Rxb2 {[%clk
0:00:20]} 35. Rxb6 {[%clk 0:00:53.9]} 35... Rxd2 {[%clk 0:00:19.9]} 36. Rc6
{[%clk 0:00:54]} 36... Rfd8 {[%clk 0:00:20.3]} 37. Rxc4 {[%clk 0:00:53.5]} 37...
Bf8 {[%clk 0:00:20.8]} 38. Rc7 {[%clk 0:00:46]} 38... Rc2 {[%clk 0:00:20.5]} 39.
Bg4 {[%clk 0:00:42.1]} 39... Bd6 {[%clk 0:00:19.4]} 40. Rc6 {[%clk 0:00:40.2]}
40... Be7 {[%clk 0:00:19.5]} 41. Bh5 {[%clk 0:00:37.9]} 41... Kf8 {[%clk
0:00:18.7]} 42. Rb1 {[%clk 0:00:21.1]} 42... Rd7 {[%clk 0:00:07.8]} 43. h4
{[%clk 0:00:10.1]} 43... Bd8 {[%clk 0:00:06.4]} 44. Bd1 {[%clk 0:00:07.6]} 44...
Rcd2 {[%clk 0:00:03.5]} 45. Bg4 {[%clk 0:00:07.7]} 45... R2d6 {[%clk 0:00:04.4]}
46. Bxd7 {[%clk 0:00:06.8]} 46... Rxd7 {[%clk 0:00:05.3]} 47. Rc8 {[%clk
0:00:06.7]} 47... Ke7 {[%clk 0:00:05.2]} 48. Rc6 {[%clk 0:00:06.3]} 48... Rd2
{[%clk 0:00:02.8]} 49. Rb7+ {[%clk 0:00:05.6]} 49... Ke8 {[%clk 0:00:02.7]} 50.
Rc8 {[%clk 0:00:05.9]} 50... Rd3 {[%clk 0:00:02.6]} 51. Kg2 {[%clk 0:00:05.8]}
51... Rd2 {[%clk 0:00:02.7]} 52. Rbb8 {[%clk 0:00:05.5]} 52... Ke7 {[%clk
0:00:02.5]} 53. Rxd8 {[%clk 0:00:05.8]} 53... Rxd8 {[%clk 0:00:03.4]} 54. Rxd8
{[%clk 0:00:06.3]} 54... Kxd8 {[%clk 0:00:04.3]} 55. Kf3 {[%clk 0:00:06.8]} 1-0